bitfinex/quotes_BTCUSD_20241025
["timestamp","ask_amount","ask_price","bid_price","bid_amount"]
[1729824929092,0.00772751,68045.0,68044.0,0.25150424]
[1729824929327,0.00772751,68045.0,68044.0,0.18754124]
[1729824929540,0.01458052,68045.0,68044.0,0.33450424]
[1729824931093,0.01458052,68045.0,68044.0,0.18754124]
[1729824931507,0.02150264,68045.0,68044.0,0.18754124]
[1729824933282,0.00774712,68045.0,68044.0,0.18754124]
[1729824937092,0.15470812,68045.0,68044.0,0.18754124]
[1729824940929,0.15470812,68045.0,68044.0,0.28504124]
[1729824944857,0.00774712,68045.0,68044.0,0.28504124]
[1729824945092,0.15470812,68045.0,68044.0,0.28504124]
[1729824948873,0.00774712,68045.0,68044.0,0.28504124]
[1729824949530,0.15470812,68045.0,68044.0,0.28504124]
[1729824951079,0.00774712,68045.0,68044.0,0.28504124]
[1729824952175,0.15470812,68045.0,68044.0,0.28504124]
[1729824956144,0.00774712,68045.0,68044.0,0.28504124]
[1729824956376,0.0075248,68045.0,68044.0,0.28504124]
[1729824960526,0.1544858,68045.0,68044.0,0.28504124]
[1729824961852,0.0075248,68045.0,68044.0,0.43200424]
[1729824962071,0.0075248,68045.0,68044.0,0.28504124]
[1729824967613,0.0075248,68045.0,68044.0,0.20204124]
[1729824980955,0.1544858,68045.0,68044.0,0.10454124]
[1729824981159,0.1544858,68045.0,68044.0,0.00160196]
[1729824985105,0.0075248,68045.0,68044.0,0.00160196]
[1729824986163,0.1544858,68045.0,68044.0,0.00160196]
[1729824988540,0.0075248,68045.0,68044.0,0.00160196]
[1729824989183,0.1544858,68045.0,68044.0,0.00160196]
[1729824989601,0.0075248,68045.0,68044.0,0.00160196]
[1729824990029,0.1544858,68045.0,68044.0,0.00160196]
[1729824991080,0.0075248,68045.0,68044.0,0.00160196]
[1729824991498,0.1544858,68045.0,68044.0,0.00160196]
[1729824992159,0.0075248,68045.0,68044.0,0.00160196]
[1729824993973,0.1544858,68045.0,68044.0,0.00160196]
[1729824994177,0.396115,68045.0,68044.0,0.00160196]
[1729824994391,0.49274974,68045.0,68044.0,0.00160196]
[1729824995212,0.58091414,68045.0,68044.0,0.00160196]
[1729824995659,0.39610685,68045.0,68044.0,0.00160196]
[1729824995878,0.31280685,68045.0,68044.0,0.00160196]
[1729824996718,0.2466858,68045.0,68044.0,0.00160196]
[1729824997413,0.2205922,68045.0,68044.0,0.00160196]
[1729824997621,0.22059219,68045.0,68044.0,0.00160196]
[1729824998803,0.1544858,68045.0,68044.0,0.00160196]
[1729824999017,0.22058519,68045.0,68044.0,0.00160196]
[1729825001152,0.1544858,68045.0,68044.0,0.00160196]
[1729825002593,0.19853713,68045.0,68044.0,0.00160196]
[1729825002799,0.1544858,68045.0,68044.0,0.00160196]
[1729825003436,0.19853447,68045.0,68044.0,0.00160196]
[1729825003651,0.1544858,68045.0,68044.0,0.00160196]
[1729825004696,0.18853145,68045.0,68044.0,0.00160196]
[1729825012959,0.18852135,68045.0,68044.0,0.00160196]
[1729825016069,0.18934635,68045.0,68044.0,0.00160196]
[1729825018051,0.18934586,68045.0,68044.0,0.00160196]
[1729825024046,0.1453108,68045.0,68044.0,0.00160196]
[1729825025376,0.15908263,68045.0,68044.0,0.00160196]
[1729825027757,0.1453108,68045.0,68044.0,0.00160196]
[1729825029953,0.15908878,68045.0,68044.0,0.00160196]
[1729825030221,0.20312384,68045.0,68044.0,0.00160196]
[1729825030889,0.18934586,68045.0,68044.0,0.00160196]
[1729825031323,0.20312349,68045.0,68044.0,0.00160196]
[1729825031975,0.18934586,68045.0,68044.0,0.00160196]
[1729825032187,0.1453108,68045.0,68044.0,0.00160196]
[1729825032819,0.18937113,68045.0,68044.0,0.00160196]
[1729825034392,0.15908826,68045.0,68044.0,0.00160196]
[1729825035897,0.20315704,68045.0,68044.0,0.00160196]
[1729825036112,0.18937958,68045.0,68044.0,0.00160196]
[1729825036319,0.1453108,68045.0,68044.0,0.00160196]
[1729825036583,0.1893827,68045.0,68044.0,0.00160196]
[1729825037227,0.1453108,68045.0,68044.0,0.00160196]
[1729825037914,0.15908784,68045.0,68044.0,0.00160196]
[1729825038123,0.2031643,68045.0,68044.0,0.00160196]
[1729825038350,0.1453108,68045.0,68044.0,0.00160196]
[1729825038974,0.15908784,68045.0,68044.0,0.00160196]
[1729825039419,0.22519102,68045.0,68044.0,0.00160196]
[1729825039627,0.21141398,68045.0,68044.0,0.00160196]
[1729825040732,0.21144427,68045.0,68044.0,0.00160196]
[1729825041598,0.20644427,68045.0,68044.0,0.00160196]
[1729825042482,0.22022115,68045.0,68044.0,0.00160196]
[1729825042703,0.20644427,68045.0,68044.0,0.00160196]
[1729825043867,0.22022147,68045.0,68044.0,0.00160196]
[1729825044078,0.20644427,68045.0,68044.0,0.00160196]
[1729825045668,0.1403108,68045.0,68044.0,0.00160196]
[1729825046118,0.20644407,68045.0,68044.0,0.00160196]
[1729825046333,0.20644354,68045.0,68044.0,0.00160196]
[1729825046554,0.1403108,68045.0,68044.0,0.00160196]
[1729825046770,0.20644398,68045.0,68044.0,0.00160196]
[1729825048141,0.2064445,68045.0,68044.0,0.00160196]
[1729825049175,0.22022197,68045.0,68044.0,0.00160196]
[1729825050492,0.2064445,68045.0,68044.0,0.00160196]
[1729825050676,0.22022278,68045.0,68044.0,0.00160196]
[1729825051951,0.15408908,68045.0,68044.0,0.00160196]
[1729825052167,0.22022361,68045.0,68044.0,0.00160196]
[1729825053477,0.20644533,68045.0,68044.0,0.00160196]
[1729825057156,0.2202271,68045.0,68044.0,0.00160196]
[1729825059837,0.22022984,68045.0,68044.0,0.00160196]
[1729825060283,0.20644807,68045.0,68044.0,0.00160196]
[1729825062056,0.20644807,68045.0,68044.0,0.09820196]
[1729825062792,0.04491659,68045.0,68044.0,0.32386496]
[1729825063003,0.000825,68045.0,68044.0,0.42680424]
[1729825069301,0.000825,68045.0,68044.0,0.60030805]
[1729825075439,0.000825,68045.0,68044.0,0.80324733]
[1729825076450,0.000825,68045.0,68044.0,0.70030805]
[1729825076898,0.000825,68045.0,68044.0,0.72972805]
[1729825077141,0.000825,68045.0,68044.0,0.70030805]
[1729825085221,0.000825,68045.0,68044.0,0.81824733]
[1729825091421,0.000825,68045.0,68044.0,0.82412533]
[1729825092286,0.21926745,68063.0,68049.0,0.0935]
[1729825092482,0.21926745,68063.0,68062.0,0.10293928]
[1729825092684,0.14692,68064.0,68062.0,0.10293928]
[1729825093776,0.04894008,68074.0,68062.0,0.10293928]
[1729825094059,0.14692,68064.0,68062.0,0.10293928]
[1729825096317,0.146922,68063.0,68062.0,0.10293928]
[1729825097951,0.04894008,68074.0,68062.0,0.10293928]
[1729825098182,0.148586,68065.0,68062.0,0.10293928]
[1729825098957,0.001666,68065.0,68062.0,0.10293928]
[1729825099206,0.146921,68064.0,68062.0,0.10293928]
[1729825099884,0.001666,68065.0,68062.0,0.10293928]
[1729825099885,0.146922,68063.0,68062.0,0.10293928]
[1729825102850,0.001666,68065.0,68062.0,0.10293928]
[1729825104111,0.146921,68064.0,68062.0,0.10293928]
[1729825105180,0.001666,68065.0,68064.0,0.14692]
[1729825105399,0.001666,68065.0,68064.0,0.32042381]
[1729825106879,0.001666,68065.0,68064.0,0.42336309]
[1729825107100,0.001666,68065.0,68064.0,0.34984381]
[1729825107294,0.001666,68065.0,68064.0,0.32042381]
[1729825109249,0.001666,68065.0,68064.0,0.32899313]
[1729825110099,0.146921,68064.0,68058.0,0.239233]
[1729825110310,0.146921,68064.0,68062.0,0.10293928]
[1729825110793,0.146921,68064.0,68056.0,0.00858788]
[1729825110794,0.146935,68057.0,68056.0,0.00858788]
[1729825111021,0.587682,68064.0,68055.0,0.0083019]
[1729825111022,0.0976,68064.0,68055.0,0.0083019]
[1729825111233,0.0976,68064.0,68056.0,0.10293928]
[1729825111415,0.293854,68061.0,68056.0,0.10293928]
[1729825111657,0.0976,68064.0,68052.0,0.41270187]
[1729825111658,0.146941,68055.0,68052.0,0.41270187]
[1729825111863,0.0976,68064.0,68055.0,0.10293928]
[1729825112067,0.146937,68056.0,68055.0,0.10293928]
[1729825112685,0.0976,68064.0,68055.0,0.10293928]
[1729825112866,0.146936,68057.0,68055.0,0.10293928]
[1729825114396,0.293864,68059.0,68055.0,0.10293928]
[1729825114604,0.440797,68059.0,68055.0,0.10293928]
[1729825114828,0.146933,68059.0,68055.0,0.10293928]
[1729825116620,0.0976,68064.0,68055.0,0.10293928]
[1729825116849,0.14693,68060.0,68055.0,0.10293928]
[1729825117053,0.0976,68064.0,68055.0,0.10293928]
[1729825117241,0.14693,68060.0,68055.0,0.10293928]
[1729825117467,0.14693,68060.0,68058.0,0.10293928]
[1729825118332,0.293849,68062.0,68058.0,0.10293928]
[1729825118555,0.146932,68059.0,68055.0,0.10293928]
[1729825119232,0.146932,68059.0,68053.0,0.148593]
[1729825119489,0.146932,68059.0,68055.0,0.10293928]
[1729825119708,0.146928,68061.0,68055.0,0.10293928]
[1729825119942,0.146928,68061.0,68055.0,0.24987828]
[1729825120619,0.14693,68060.0,68055.0,0.10293928]
[1729825120848,0.146931,68060.0,68055.0,0.10293928]
[1729825121065,0.370449,68062.0,68055.0,0.10293928]
[1729825121289,0.146928,68061.0,68055.0,0.24987828]
[1729825121728,0.146928,68061.0,68053.0,0.00165]
[1729825121729,0.370452,68062.0,68053.0,0.00165]
[1729825122023,0.146942,68054.0,68053.0,0.00165]
[1729825123142,0.223542,68054.0,68053.0,0.00165]
[1729825123354,0.26958449,68054.0,68053.0,0.00165]
[1729825123571,0.74324433,68054.0,68053.0,0.00165]
[1729825123832,0.86135057,68054.0,68053.0,0.00165]
[1729825124490,0.75124433,68054.0,68053.0,0.00165]
[1729825124697,0.64830505,68054.0,68053.0,0.00165]
[1729825124908,0.73634456,68054.0,68053.0,0.00165]
[1729825125142,0.47414075,68054.0,68053.0,0.00165]
[1729825125376,0.146942,68054.0,68053.0,0.00165]
[1729825125587,0.19094979,68054.0,68053.0,0.00165]
[1729825126289,0.19039213,68054.0,68053.0,0.00165]
[1729825127179,0.14639271,68054.0,68053.0,0.00165]
[1729825128050,0.19039213,68054.0,68053.0,0.00165]
[1729825128509,0.14639271,68054.0,68053.0,0.00165]
[1729825142491,0.14721771,68054.0,68053.0,0.00165]
[1729825165118,0.19122449,68054.0,68053.0,0.00165]
[1729825166024,0.14721771,68054.0,68053.0,0.00165]
[1729825167413,0.19122449,68054.0,68053.0,0.00165]
[1729825168392,0.14721771,68054.0,68053.0,0.00165]
[1729825168858,0.19127802,68054.0,68053.0,0.00165]
[1729825169083,0.19127801,68054.0,68053.0,0.00165]
[1729825170433,0.14721771,68054.0,68053.0,0.00165]
[1729825174206,0.19128344,68054.0,68053.0,0.00165]
[1729825174654,0.14721771,68054.0,68053.0,0.00165]
[1729825175320,0.14721771,68054.0,68053.0,0.17655]
[1729825175592,0.000825,68054.0,68053.0,0.27948928]
[1729825175830,0.000825,68054.0,68053.0,0.17655]
[1729825176049,0.000825,68054.0,68053.0,0.27948928]
[1729825176511,0.000825,68054.0,68053.0,0.17655]
[1729825181097,0.147767,68054.0,68053.0,0.17655]
[1729825181319,0.000825,68054.0,68053.0,0.09875]
[1729825182483,0.000825,68054.0,68053.0,0.20168928]
[1729825183706,0.147767,68054.0,68053.0,0.20168928]
[1729825184368,0.147767,68054.0,68053.0,0.09875]
[1729825188247,0.000825,68054.0,68053.0,0.09875]
[1729825191559,0.147767,68054.0,68053.0,0.09875]
[1729825200156,0.000825,68054.0,68053.0,0.09875]
[1729825200383,0.147767,68054.0,68053.0,0.09875]
[1729825201068,0.147767,68054.0,68053.0,0.00165]
[1729825207907,0.000825,68054.0,68053.0,0.42843328]
[1729825208138,0.000825,68054.0,68053.0,0.84584899]
[1729825208362,0.000825,68054.0,68053.0,0.80781565]
[1729825208582,0.000825,68054.0,68053.0,0.70487637]
[1729825210497,0.000825,68054.0,68053.0,0.92110073]
[1729825210934,0.000825,68054.0,68053.0,0.96492787]
[1729825211350,0.000825,68064.0,68053.0,0.96492787]
[1729825211351,0.000825,68064.0,68063.0,0.146922]
[1729825211573,0.000825,68064.0,68063.0,0.70614218]
[1729825211765,0.000825,68064.0,68063.0,0.60026509]
[1729825214481,0.000825,68064.0,68063.0,0.60876452]
[1729825217755,0.000825,68064.0,68063.0,0.50582524]
[1729825217960,0.000825,68064.0,68063.0,0.60876452]
[1729825229541,0.1729,68080.0,68066.0,0.24985528]
[1729825229542,0.01603075,68067.0,68066.0,0.24985528]
[1729825229747,0.01603075,68067.0,68066.0,0.42335909]
[1729825229953,0.01603075,68067.0,68066.0,0.32041981]
[1729825230164,0.01603075,68067.0,68066.0,0.42335909]
[1729825230822,0.01603075,68067.0,68066.0,0.12593928]
[1729825231031,0.01603075,68067.0,68063.0,0.18539943]
[1729825231032,0.146916,68066.0,68063.0,0.18539943]
[1729825231252,0.02304635,68067.0,68063.0,0.25412143]
[1729825231459,0.02304635,68067.0,68063.0,0.10719943]
[1729825231664,0.02304635,68067.0,68063.0,0.00849943]
[1729825231876,0.16996035,68067.0,68063.0,0.00849943]
[1729825232087,0.02304635,68067.0,68062.0,0.176922]
[1729825232290,0.02304635,68067.0,68063.0,0.146921]
[1729825232702,0.01603075,68067.0,68063.0,0.146922]
[1729825232915,0.00701556,68066.0,68063.0,0.146922]
[1729825233168,0.146918,68065.0,68062.0,0.03]
[1729825233361,0.00701556,68066.0,68061.0,8.476e-05]
[1729825233571,0.146922,68063.0,68061.0,8.476e-05]
[1729825234236,0.146923,68063.0,68061.0,8.476e-05]
[1729825234506,0.00701556,68066.0,68061.0,8.476e-05]
[1729825234721,0.00096107,68062.0,68061.0,8.476e-05]
[1729825234948,0.14692,68064.0,68061.0,8.476e-05]
[1729825235173,0.00701542,68062.0,68061.0,8.476e-05]
[1729825235383,0.14692,68064.0,68061.0,8.476e-05]
[1729825235593,0.00605435,68062.0,68061.0,8.476e-05]
[1729825235794,0.14692,68064.0,68061.0,8.476e-05]
[1729825235975,0.00605435,68062.0,68061.0,8.476e-05]
[1729825236203,0.14692,68064.0,68061.0,8.476e-05]
[1729825236413,0.00605435,68062.0,68061.0,0.10302404]
[1729825236617,0.14692,68064.0,68061.0,0.10302404]
[1729825236828,0.00605435,68062.0,68061.0,0.10302404]
[1729825237285,0.14692,68064.0,68061.0,0.10302404]
[1729825237506,0.00605435,68062.0,68061.0,0.10302404]
[1729825237719,0.14692,68064.0,68061.0,0.10302404]
[1729825237931,0.00605435,68062.0,68061.0,0.10302404]
[1729825238158,0.14692,68064.0,68061.0,0.10302404]
[1729825238375,0.00701542,68062.0,68061.0,0.10302404]
[1729825238594,0.00096107,68062.0,68061.0,0.10302404]
[1729825239024,0.00096107,68062.0,68061.0,8.476e-05]
[1729825239241,0.14788507,68062.0,68061.0,8.476e-05]
[1729825239456,0.01685575,68067.0,68061.0,8.476e-05]
[1729825239663,0.146924,68062.0,68061.0,8.476e-05]
[1729825239875,0.146921,68064.0,68061.0,8.476e-05]
[1729825240099,0.146924,68062.0,68061.0,8.476e-05]
[1729825241889,0.14788507,68062.0,68061.0,8.476e-05]
[1729825242359,0.00096107,68062.0,68061.0,8.476e-05]
[1729825242790,0.146921,68064.0,68061.0,8.476e-05]
[1729825242993,0.00698639,68062.0,68061.0,8.476e-05]
[1729825243204,0.146921,68064.0,68061.0,8.476e-05]
[1729825243413,0.00602532,68062.0,68061.0,8.476e-05]
[1729825243619,0.146921,68064.0,68061.0,8.476e-05]
[1729825243836,0.00602532,68062.0,68061.0,8.476e-05]
[1729825244035,0.146921,68064.0,68061.0,8.476e-05]
[1729825244179,0.00602532,68062.0,68061.0,8.476e-05]
[1729825244376,0.146921,68064.0,68061.0,8.476e-05]
[1729825244634,0.00602532,68062.0,68061.0,8.476e-05]
[1729825245133,0.146921,68064.0,68061.0,8.476e-05]
[1729825245357,0.00602532,68062.0,68061.0,8.476e-05]
[1729825245582,0.0009654,68063.0,68061.0,8.476e-05]
[1729825246644,0.0009654,68063.0,68062.0,0.10293928]
[1729825249344,0.0009654,68063.0,68062.0,0.10458928]
[1729825249549,0.1478874,68063.0,68062.0,0.00165]
[1729825250862,0.2289874,68063.0,68062.0,0.00165]
[1729825251299,0.23500844,68063.0,68062.0,0.00165]
[1729825253196,0.15390844,68063.0,68062.0,0.00165]
[1729825261319,0.15390844,68063.0,68062.0,0.10458928]
[1729825262009,0.00698644,68063.0,68062.0,0.30112856]
[1729825262260,0.00698644,68063.0,68062.0,0.52719073]
[1729825262501,0.01685575,68067.0,68066.0,0.240516]
[1729825262720,0.01685575,68067.0,68066.0,0.34345528]
[1729825264328,0.01685575,68067.0,68066.0,0.52259456]
[1729825265942,0.01685575,68067.0,68066.0,0.67309837]
[1729825266178,0.01685575,68067.0,68066.0,0.69609837]
[1729825273836,0.01685575,68067.0,68066.0,0.89903765]
[1729825274080,0.01685575,68067.0,68066.0,0.79609837]
[1729825274288,0.01685575,68067.0,68066.0,0.80109837]
[1729825276288,0.01685575,68067.0,68066.0,0.91403765]
[1729825276932,0.01685575,68067.0,68066.0,0.81109837]
[1729825277138,0.01685575,68067.0,68066.0,0.91403765]
[1729825277360,0.01685575,68067.0,68066.0,0.81109837]
[1729825279499,0.22040187,68085.0,68066.0,0.81109837]
[1729825279500,0.22040187,68085.0,68084.0,0.146877]
[1729825279704,0.22040187,68085.0,68084.0,0.42801628]
[1729825279912,0.148528,68090.0,68084.0,0.42801628]
[1729825280116,0.148528,68090.0,68089.0,0.10293928]
[1729825280539,0.001664,68090.0,68089.0,0.10293928]
[1729825281597,0.148528,68090.0,68089.0,0.10293928]
[1729825282232,0.001664,68090.0,68089.0,0.10293928]
[1729825282655,0.148528,68090.0,68085.0,0.36727587]
[1729825282867,0.148528,68090.0,68089.0,0.10293928]
[1729825287009,0.146881,68082.0,68081.0,0.00859427]
[1729825287285,0.293737,68088.0,68081.0,0.11153355]
[1729825287484,0.14687,68087.0,68086.0,0.10293928]
[1729825289372,0.293733,68089.0,68086.0,0.10293928]
[1729825289656,0.14687,68087.0,68086.0,0.10293928]
[1729825292096,0.29365954,68089.0,68086.0,0.10293928]
[1729825292332,0.146867,68089.0,68086.0,0.10293928]
[1729825293257,0.144867,68089.0,68086.0,0.10293928]
[1729825293480,0.148529,68090.0,68086.0,0.24981028]
[1729825293696,0.001664,68090.0,68089.0,0.10293928]
[1729825296425,0.001664,68090.0,68089.0,0.24980528]
[1729825296635,0.001664,68090.0,68089.0,0.10293928]
[1729825299814,0.123524,68092.0,68089.0,0.10293928]
[1729825300252,0.001664,68094.0,68089.0,0.10293928]
[1729825300479,0.14686,68092.0,68087.0,0.146868]
[1729825300701,0.001664,68094.0,68092.0,0.10293928]
[1729825301142,0.148521,68094.0,68092.0,0.10293928]
[1729825301608,0.001664,68094.0,68092.0,0.10293928]
[1729825301830,0.146857,68093.0,68092.0,0.10293928]
[1729825306919,0.293724,68092.0,68089.0,0.10293928]
[1729825307144,0.001664,68094.0,68089.0,0.10293928]
[1729825307608,0.146863,68091.0,68089.0,0.10293928]
[1729825308242,0.146864,68090.0,68089.0,0.10293928]
[1729825308474,0.14677928,68090.0,68086.0,0.25146128]
[1729825309110,0.29454,68093.0,68086.0,0.25146128]
[1729825309318,0.29454,68093.0,68087.0,0.146869]
[1729825309319,0.146862,68091.0,68087.0,0.146869]
[1729825312067,0.146862,68091.0,68086.0,0.10458928]
[1729825312285,0.146862,68091.0,68087.0,0.146869]
[1729825312502,0.14686,68092.0,68087.0,0.14687]
[1729825314305,0.146862,68091.0,68087.0,0.14687]
[1729825314745,0.146869,68088.0,68086.0,0.10458928]
[1729825314960,0.293727,68091.0,68086.0,0.00165]
[1729825315165,0.293727,68091.0,68086.0,0.148522]
[1729825315166,0.146865,68090.0,68086.0,0.148522]
[1729825315803,0.000825,68093.0,68086.0,0.00165]
[1729825316015,0.29372,68092.0,68086.0,0.148521]
[1729825316228,0.1761,68091.0,68086.0,0.00165]
[1729825316434,0.146865,68090.0,68086.0,0.00165]
[1729825316874,0.146865,68090.0,68086.0,0.148521]
[1729825320526,0.29372,68092.0,68086.0,0.148521]
[1729825320733,0.146864,68090.0,68086.0,0.00165]
[1729825321137,0.29372,68092.0,68087.0,0.146869]
[1729825321138,0.44058,68092.0,68087.0,0.146869]
[1729825321358,0.48462266,68092.0,68087.0,0.146869]
[1729825321561,0.44058,68092.0,68087.0,0.146869]
[1729825322348,0.33776574,68092.0,68086.0,0.00165]
[1729825322611,0.146862,68091.0,68086.0,0.00165]
[1729825322726,0.146862,68091.0,68087.0,0.14687]
[1729825325287,0.04404574,68092.0,68087.0,0.14687]
[1729825325932,0.146866,68089.0,68086.0,0.00165]
[1729825326355,0.04404574,68092.0,68089.0,0.146866]
[1729825326558,0.000825,68093.0,68090.0,0.146862]
[1729825326559,0.04487074,68093.0,68090.0,0.146862]
[1729825326765,0.04487074,68093.0,68091.0,0.146862]
[1729825326981,0.04487074,68093.0,68089.0,0.23050381]
[1729825327183,0.000825,68093.0,68090.0,0.146863]
[1729825329418,0.000825,68093.0,68089.0,0.45090568]
[1729825329636,0.000825,68093.0,68089.0,0.59777068]
[1729825330053,0.000825,68093.0,68089.0,0.37736881]
[1729825330659,0.000825,68093.0,68089.0,0.3858243]
[1729825331779,0.14686,68092.0,68089.0,0.23050381]
[1729825332449,0.000825,68093.0,68089.0,0.23050381]
[1729825333778,0.000825,68093.0,68087.0,0.10528285]
[1729825333779,0.146867,68089.0,68087.0,0.09705]
[1729825333993,0.146864,68090.0,68087.0,0.09705]
[1729825334212,0.000825,68093.0,68088.0,0.22040187]
[1729825334429,0.000825,68093.0,68088.0,0.47020915]
[1729825334652,0.000825,68093.0,68092.0,0.10293928]
[1729825334868,0.147683,68093.0,68092.0,0.10293928]
[1729825335298,0.147683,68093.0,68089.0,0.10293928]
[1729825335299,0.000825,68093.0,68089.0,0.10293928]
[1729825335487,0.146864,68090.0,68089.0,0.10293928]
[1729825335783,0.293721,68092.0,68089.0,0.10293928]
[1729825335784,0.146862,68091.0,68089.0,0.10293928]
[1729825336485,0.146865,68090.0,68087.0,0.09705]
[1729825336707,0.000825,68093.0,68091.0,0.1739]
[1729825337397,0.000825,68093.0,68091.0,0.32076]
[1729825337823,0.000825,68093.0,68091.0,0.1739]
[1729825340351,0.000825,68093.0,68092.0,0.14686]
[1729825341510,0.000825,68093.0,68091.0,0.18244968]
[1729825341724,0.000825,68093.0,68092.0,0.14686]
[1729825342391,0.000825,68093.0,68091.0,0.18244968]
[1729825342834,0.000825,68093.0,68091.0,0.33191068]
[1729825343754,0.000825,68093.0,68092.0,0.14686]
[1729825344187,0.000825,68093.0,68091.0,0.18504968]
[1729825344398,0.000825,68093.0,68091.0,0.33191068]
[1729825345308,0.000825,68093.0,68092.0,0.14686]
[1729825350593,0.000825,68093.0,68091.0,0.32336]
[1729825350831,0.000825,68093.0,68092.0,0.14686]
[1729825351946,0.000825,68093.0,68092.0,0.36726187]
[1729825352154,0.000825,68093.0,68092.0,0.14686]
[1729825353707,0.000825,68093.0,68092.0,0.74344189]
[1729825353944,0.000825,68093.0,68092.0,0.60170309]
[1729825354597,0.000832,68095.0,68094.0,0.381655]
[1729825354815,0.000832,68095.0,68094.0,0.76048284]
[1729825355049,0.000832,68095.0,68094.0,0.82806784]
[1729825355294,0.000832,68095.0,68094.0,0.76231845]
[1729825355510,0.000832,68095.0,68094.0,0.76045908]
[1729825355754,0.000832,68095.0,68094.0,0.82803662]
[1729825356453,0.000832,68095.0,68094.0,0.65749874]
[1729825356895,0.000832,68095.0,68094.0,0.81963737]
[1729825357163,0.000832,68095.0,68094.0,0.59875881]
[1729825357376,0.000832,68095.0,68094.0,0.70169809]
[1729825357611,0.000832,68095.0,68094.0,0.80463737]
[1729825361020,0.000832,68095.0,68094.0,0.80963737]
[1729825369612,0.000832,68095.0,68094.0,0.81233737]
[1729825373675,0.000832,68095.0,68094.0,0.82233737]
[1729825376825,0.000832,68095.0,68094.0,0.61145881]
[1729825377040,0.000832,68095.0,68094.0,0.81733737]
[1729825377962,0.000832,68095.0,68094.0,0.81233737]
[1729825379957,0.000832,68095.0,68094.0,0.80733737]
[1729825380178,0.000832,68095.0,68094.0,0.81233737]
[1729825381269,0.000832,68095.0,68094.0,0.80733737]
[1729825381505,0.000832,68095.0,68094.0,0.81233737]
[1729825381720,0.000832,68095.0,68094.0,0.80733737]
[1729825387325,0.000832,68114.0,68110.0,0.14682]
[1729825387549,0.22040187,68113.0,68112.0,0.146817]
[1729825387764,0.000832,68114.0,68113.0,0.169814]
[1729825387986,0.000832,68114.0,68113.0,0.32031781]
[1729825388483,0.000832,68114.0,68113.0,0.52619637]
[1729825388711,0.000832,68114.0,68113.0,0.42325709]
[1729825389308,0.000832,68114.0,68113.0,0.52619637]
[1729825389744,0.000832,68114.0,68113.0,0.42325709]
[1729825390142,0.000832,68114.0,68113.0,0.43182722]
[1729825390340,0.000832,68114.0,68113.0,0.53182722]
[1729825391344,0.000832,68121.0,68120.0,0.146799]
[1729825391540,0.000832,68121.0,68120.0,0.80128137]
[1729825391755,0.000832,68121.0,68120.0,0.80628137]
[1729825393840,0.000832,68121.0,68120.0,0.80128137]
[1729825394062,0.000832,68121.0,68120.0,0.80628137]
[1729825394745,0.000832,68121.0,68120.0,0.81479184]
[1729825396498,0.000832,68121.0,68120.0,0.80979184]
[1729825397840,0.000832,68121.0,68120.0,0.70685256]
[1729825398066,0.000832,68121.0,68120.0,0.53175256]
[1729825398758,0.000832,68121.0,68120.0,0.63469184]
[1729825398983,0.000832,68121.0,68120.0,0.53175256]
[1729825400733,0.000832,68121.0,68120.0,0.66410184]
[1729825400962,0.000832,68121.0,68120.0,0.63469184]
[1729825406023,0.000832,68123.0,68120.0,0.63469184]
[1729825406024,0.000832,68123.0,68122.0,0.284795]
[1729825406238,9e-05,68132.0,68131.0,0.237776]
[1729825406466,9e-05,68132.0,68131.0,0.64188644]
[1729825407114,9e-05,68132.0,68131.0,0.64688644]
[1729825407392,9e-05,68132.0,68131.0,0.74688644]
[1729825411122,9e-05,68132.0,68131.0,0.75511076]
[1729825411990,9e-05,68132.0,68131.0,0.55617148]
[1729825412218,9e-05,68132.0,68131.0,0.4532322]
[1729825412462,0.51469987,68151.0,68150.0,0.146735]
[1729825412463,0.000832,68151.0,68150.0,0.146735]
[1729825412702,0.000832,68151.0,68150.0,0.32023881]
[1729825413555,0.000832,68151.0,68150.0,0.42317809]
[1729825414237,0.000832,68151.0,68150.0,0.27644309]
[1729825414446,0.000832,68151.0,68150.0,0.10293928]
[1729825414666,0.083732,68151.0,68147.0,0.39642028]
[1729825414881,0.083732,68151.0,68147.0,0.40018309]
[1729825415339,0.083732,68151.0,68147.0,0.40018209]
[1729825415590,0.083732,68151.0,68148.0,0.146739]
[1729825415823,0.083732,68151.0,68143.0,0.10293928]
[1729825416068,0.083732,68151.0,68141.0,0.22040187]
[1729825416316,0.146746,68145.0,68142.0,0.10293928]
[1729825416770,0.083732,68151.0,68139.0,0.10293928]
[1729825416771,0.146754,68141.0,68139.0,0.10293928]
[1729825416983,0.00552206,68144.0,68139.0,0.10293928]
[1729825417314,0.146748,68144.0,68143.0,0.10293928]
[1729825418170,0.377198,68151.0,68140.0,0.10293928]
[1729825418379,0.146754,68141.0,68140.0,0.10293928]
[1729825418594,0.146753,68142.0,68140.0,0.10293928]
[1729825419460,0.146749,68144.0,68140.0,0.10293928]
[1729825419678,0.293491,68146.0,68140.0,0.10293928]
[1729825419905,0.146754,68141.0,68140.0,0.10293928]
[1729825420145,0.085732,68151.0,68134.0,0.22862778]
[1729825420365,0.0818,68138.0,68135.0,0.10293928]
[1729825420597,0.228562,68138.0,68134.0,0.22040187]
[1729825420812,0.228562,68138.0,68134.0,0.32334115]
[1729825420813,0.146763,68137.0,68134.0,0.32334115]
[1729825421025,0.0818,68138.0,68134.0,0.32334115]
[1729825421255,0.375325,68138.0,68134.0,0.10293928]
[1729825421469,0.0818,68138.0,68131.0,0.12766735]
[1729825421718,0.375322,68138.0,68131.0,0.12766735]
[1729825421932,0.293526,68137.0,68131.0,0.12766735]
[1729825422359,0.146771,68134.0,68131.0,0.02472807]
[1729825422994,0.293526,68137.0,68131.0,0.02472807]
[1729825423452,0.0818,68138.0,68131.0,0.02472807]
[1729825423453,0.146767,68135.0,68131.0,0.02472807]
[1729825423897,0.0818,68138.0,68131.0,0.02472807]
[1729825424137,0.293529,68137.0,68131.0,0.02472807]
[1729825424354,0.146767,68135.0,68131.0,0.02472807]
[1729825424564,0.146767,68135.0,68131.0,0.02637607]
[1729825424775,0.146765,68137.0,68131.0,0.17315107]
[1729825425487,0.082624,68138.0,68131.0,0.001648]
[1729825425929,0.293526,68137.0,68131.0,0.001648]
[1729825426159,0.146765,68136.0,68131.0,0.001648]
[1729825426548,0.14677,68134.0,68131.0,0.001648]
[1729825426817,0.146766,68136.0,68131.0,0.001648]
[1729825427032,0.146769,68135.0,68131.0,0.001648]
[1729825427879,0.146765,68136.0,68131.0,0.001648]
[1729825428311,0.082624,68138.0,68131.0,0.001648]